bitfinex/quotes_ETHUSD_20260108
["timestamp","ask_amount","ask_price","bid_price","bid_amount"]
[1767899855206,3.21238313,3113.0,3112.0,0.97908294]
[1767899855416,0.64245648,3113.0,3112.1,0.97908294]
[1767899857215,6.42439659,3113.2,3112.2,3.2131611]
[1767899857415,6.42439659,3113.2,3111.4,1.05943908]
[1767899857416,0.96403451,3113.1,3111.4,1.05943908]
[1767899857743,0.96403451,3112.9,3112.0,3.21331295]
[1767899857951,0.96403451,3112.9,3111.9,3.21342174]
[1767899858443,0.96403451,3113.1,3112.1,3.21324454]
[1767899858640,6.42439659,3113.2,3112.1,4.19232748]
[1767899858839,0.001,3112.7,3112.1,5.03532748]
[1767899859033,0.001,3112.7,3112.1,4.0562401]
[1767899860267,0.001,3112.7,3112.1,8.24858739]
[1767899860448,0.6597853,3113.4,3112.4,0.08035614]
[1767899860753,0.96503451,3113.6,3112.4,0.08035614]
[1767899860754,6.42363898,3113.5,3112.4,1.05943908]
[1767899861118,7.38767349,3113.5,3112.4,1.05943908]
[1767899861819,7.38767349,3113.5,3112.4,4.27238485]
[1767899862239,6.42363898,3113.5,3112.4,4.27238485]
[1767899862438,6.42363898,3113.5,3112.5,0.97908294]
[1767899862644,0.6424639,3113.4,3112.5,0.97908294]
[1767899863524,0.6424639,3113.4,3112.6,3.21274818]
[1767899864050,3.21181949,3113.5,3112.5,4.19188496]
[1767899864645,3.21181949,3113.5,3112.5,7.40473636]
[1767899864833,3.21272523,3113.6,3112.6,1.05943908]
[1767899865424,0.001,3113.6,3112.8,7.40416646]
[1767899865620,0.001,3113.6,3112.9,0.97908294]
[1767899865837,0.001,3113.6,3112.8,4.12565016]
[1767899866252,0.001,3113.6,3112.8,4.96865016]
[1767899867148,0.001,3113.6,3112.8,4.1358979]
[1767899867349,0.001,3113.6,3112.8,0.92335614]
[1767899867551,0.001,3113.6,3112.4,0.08035614]
[1767899867552,0.96403451,3113.4,3112.4,0.08035614]
[1767899867753,0.96403451,3113.4,3111.8,3.29382754]
[1767899867942,0.96403451,3113.2,3111.9,4.05646831]
[1767899868146,0.96403451,3113.2,3112.1,3.21321443]
[1767899868457,0.96403451,3113.2,3112.2,3.21313095]
[1767899868836,0.96403451,3113.2,3112.3,3.2130357]
[1767899869581,3.21223218,3113.1,3112.1,6.42650152]
[1767899869857,3.21223218,3113.1,3112.2,0.08035614]
[1767899871458,3.21217941,3113.2,3112.2,0.08035614]
[1767899871759,4.17608397,3113.3,3112.4,0.97908294]
[1767899871760,0.001,3112.8,3112.4,0.97908294]
[1767899872531,0.001,3112.8,3112.4,1.82208294]
[1767899872735,3.21195107,3113.4,3112.5,0.97908294]
[1767899873059,0.32119511,3113.3,3112.5,0.97908294]
[1767899873262,0.001,3113.6,3112.5,0.97908294]
[1767899873453,0.001,3113.6,3112.6,0.08035614]
[1767899873958,3.21271634,3113.6,3112.7,3.21264497]
[1767899874158,6.42443268,3113.6,3112.6,4.27213549]
[1767899878868,0.96403451,3113.5,3112.5,3.21278657]
[1767899879064,3.21202582,3113.3,3112.6,0.843]
[1767899879770,4.91482857,3113.4,3112.6,0.843]
[1767899880142,3.95079406,3113.4,3112.6,1.82208294]
[1767899880543,3.95079406,3113.4,3112.6,0.843]
[1767899881173,3.95079406,3113.4,3112.6,4.05574346]
[1767899881373,3.95079406,3113.4,3112.6,0.843]
[1767899881575,0.71626198,3113.3,3112.6,0.843]
[1767899882075,0.71626198,3113.3,3112.6,4.05572729]
[1767899882274,3.21194734,3113.4,3112.6,4.05572729]
[1767899882847,4.1767763,3113.6,3112.6,7.26847547]
[1767899883053,0.96077824,3113.6,3112.7,4.15130472]
[1767899883393,0.96077824,3113.6,3112.7,3.2125702]
[1767899883571,0.001,3113.6,3112.8,0.08035614]
[1767899883884,0.001,3113.6,3112.8,1.85586509]
[1767899884091,6.42260756,3114.0,3112.8,1.85586509]
[1767899884092,0.95977824,3114.0,3112.9,0.93873452]
[1767899884261,0.40194933,3114.8,3113.1,0.93873452]
[1767899884262,0.95977824,3114.7,3113.1,0.93873452]
[1767899884608,0.95977824,3114.7,3113.2,0.843]
[1767899885074,0.95977824,3114.5,3113.3,3.21202582]
[1767899885380,0.95977824,3114.3,3113.4,0.08035614]
[1767899886558,0.73811486,3114.4,3113.4,0.98487208]
[1767899886946,0.73811486,3114.4,3113.6,0.08035614]
[1767899887151,3.94909615,3114.4,3113.6,0.08035614]
[1767899887577,3.94909615,3114.4,3113.6,3.29203996]
[1767899887748,0.48708094,3114.3,3113.6,0.08035614]
[1767899889197,3.6981462,3114.3,3113.6,0.08035614]
[1767899889478,0.48708094,3114.3,3113.6,4.19657423]
[1767899889978,3.94903828,3114.4,3113.6,4.19657423]
[1767899890179,0.73811486,3114.4,3113.7,1.74751594]
[1767899890477,0.9217133,3114.7,3113.8,0.98487208]
[1767899890652,4.13234812,3114.7,3113.8,0.98487208]
[1767899891185,4.13234812,3114.7,3113.9,3.21140691]
[1767899891587,3.21039577,3114.9,3113.9,3.21140691]
[1767899891588,4.13213639,3114.9,3114.0,0.98487208]
[1767899891758,3.62363673,3114.9,3114.0,0.98487208]
[1767899892676,3.62360663,3114.9,3114.0,0.98487208]
[1767899893580,3.62360663,3114.9,3114.0,4.1960798]
[1767899894085,3.62360663,3114.9,3114.1,0.843]
[1767899894486,3.62360663,3114.9,3114.1,1.74751594]
[1767899894661,3.62360663,3114.9,3114.2,0.90451594]
[1767899894856,0.41321364,3114.9,3114.2,0.90451594]
[1767899895060,3.21021402,3115.1,3114.2,0.98487208]
[1767899895861,3.21021402,3115.1,3114.3,4.11551038]
[1767899896186,7.3419032,3115.2,3114.3,4.11551038]
[1767899896578,4.13180825,3115.2,3114.4,0.90451594]
[1767899896882,4.13181875,3115.2,3114.4,0.90451594]
[1767899897761,0.9217133,3115.2,3114.4,4.11535052]
[1767899897980,3.21000756,3115.3,3114.4,4.85602063]
[1767899899386,7.34178065,3115.3,3114.4,1.64518605]
[1767899899687,4.13172086,3115.3,3114.4,4.85605655]
[1767899899886,3.21000756,3115.3,3114.5,0.90451594]
[1767899900092,3.21000756,3115.3,3114.6,0.843]
[1767899900292,3.94416837,3115.3,3114.6,0.843]
[1767899900774,3.94415113,3115.3,3114.6,0.843]
[1767899900975,3.20999032,3115.3,3114.6,0.843]
[1767899901289,3.20988992,3115.4,3114.6,1.74751594]
[1767899901494,0.001,3115.0,3114.6,1.74751594]
[1767899902489,0.001,3115.0,3114.6,4.95812168]
[1767899904170,0.001,3115.0,3114.7,0.90451594]
[1767899904377,0.001,3115.0,3114.8,0.56530262]
[1767899904777,3.20956894,3115.7,3114.9,0.90451594]
[1767899904778,3.04971284,3115.6,3114.9,0.90451594]
[1767899905096,3.97042614,3115.6,3114.9,0.90451594]
[1767899906371,0.9217133,3115.6,3114.9,4.11485627]
[1767899906570,0.9217133,3115.6,3114.9,4.90392958]
[1767899906772,0.9217133,3115.6,3114.9,1.69358925]
[1767899907278,4.13138793,3115.6,3114.9,1.69358925]
[1767899907478,0.9217133,3115.6,3114.9,1.69358925]
[1767899908994,3.20961967,3115.7,3114.9,4.90394979]
[1767899909197,0.9217133,3116.3,3115.1,0.90451594]
[1767899909406,0.9217133,3116.3,3115.3,0.90451594]
[1767899911097,4.13074994,3116.2,3115.3,4.11440583]
[1767899911299,0.9217133,3116.1,3115.3,4.11440583]
[1767899911503,0.9217133,3116.6,3115.4,0.90451594]
[1767899911673,0.9217133,3116.5,3115.4,0.90451594]
[1767899911875,0.9217133,3116.4,3115.4,0.90451594]
[1767899912069,0.9217133,3116.4,3115.6,0.90451594]
[1767899912368,3.20870277,3116.6,3115.8,0.91963251]
[1767899912369,0.95611417,3116.6,3115.8,0.91963251]
[1767899912568,4.16477788,3116.6,3115.8,0.91963251]
[1767899912773,3.20866371,3116.6,3115.8,0.91963251]
[1767899912988,0.95611417,3116.6,3115.8,1.09579576]
[1767899913193,0.95611417,3116.6,3115.9,3.20934561]
[1767899913507,3.2086897,3116.6,3115.8,1.09579576]
[1767899914083,7.37349357,3116.6,3115.8,1.09579576]
[1767899915194,4.16480387,3116.6,3115.8,1.09579576]
[1767899915391,0.001,3116.0,3115.8,1.09579576]
[1767899915590,0.001,3116.0,3115.8,0.17616325]
[1767899915591,0.95711417,3116.0,3115.8,0.17616325]
[1767899915782,0.95711417,3116.0,3115.6,0.842]
[1767899916508,0.95711417,3116.0,3114.5,0.08035614]
[1767899916710,0.95711417,3116.0,3114.2,0.08035614]
[1767899916913,0.95711417,3116.0,3114.1,0.91963251]
[1767899916914,0.95611417,3115.8,3114.1,0.91963251]
[1767899917212,0.95611417,3115.6,3114.2,0.842]
[1767899917390,0.95611417,3115.3,3114.2,0.842]
[1767899917703,0.95611417,3115.3,3113.9,4.05336582]
[1767899917897,0.95611417,3115.3,3113.9,0.842]
[1767899918612,0.95611417,3115.3,3114.0,3.2112372]
[1767899918910,0.95611417,3115.3,3113.9,0.842]
[1767899918911,0.95611417,3115.3,3113.9,4.05338363]
[1767899919083,9.62958207,3115.4,3113.9,4.05338363]
[1767899919084,0.95611417,3115.1,3114.0,0.49730161]
[1767899919484,0.95611417,3114.9,3114.0,3.70858118]
[1767899919691,0.95611417,3114.9,3113.5,0.92163251]
[1767899919989,0.95611417,3114.9,3113.6,0.842]
[1767899920216,0.95611417,3114.9,3113.6,4.05370761]
[1767899920986,0.95611417,3114.9,3113.6,0.842]
[1767899921415,0.95611417,3114.9,3113.5,0.002]
[1767899921416,0.95611417,3114.7,3113.5,0.002]
[1767899923287,0.95611417,3114.5,3113.5,0.002]
[1767899923487,0.95611417,3114.3,3113.5,0.002]
[1767899923686,0.95611417,3114.3,3112.7,0.842]
[1767899924089,0.95611417,3114.3,3112.8,0.91963251]
[1767899924302,0.95611417,3114.3,3113.0,0.91963251]
[1767899925622,0.95611417,3114.1,3112.9,0.18419887]
[1767899926120,0.95611417,3114.1,3112.7,0.91963251]
[1767899926816,0.95611417,3113.9,3112.4,0.92163251]
[1767899926988,0.95611417,3113.9,3112.8,0.91963251]
[1767899927591,3.21151005,3113.8,3112.8,4.13216541]
[1767899927886,3.21143414,3113.9,3113.0,0.92163251]
[1767899928089,3.21143414,3113.9,3113.0,1.33504905]
[1767899929789,6.4226246,3114.0,3113.0,1.33504905]
[1767899930623,6.4226246,3114.0,3113.0,0.41541654]
[1767899930624,0.95611417,3113.9,3113.0,0.41541654]
[1767899930787,0.95611417,3113.9,3113.0,0.002]
[1767899931803,0.95611417,3113.7,3113.0,0.002]
[1767899932417,6.4230201,3113.8,3113.0,0.002]
[1767899932621,7.37913427,3113.8,3113.0,0.002]
[1767899933315,0.95611417,3113.7,3113.0,0.002]
[1767899934639,7.37954685,3113.6,3113.0,0.002]
[1767899935636,4.16783051,3113.6,3113.0,0.002]
[1767899936506,0.95611417,3113.5,3113.0,0.002]
[1767899938605,0.95611417,3113.3,3112.6,0.002]
[1767899940334,3.21192265,3113.4,3112.6,0.92163251]
[1767899940911,6.42363898,3113.5,3112.6,0.92163251]
[1767899941243,4.16793366,3113.5,3112.6,4.13436943]
[1767899941424,7.37975315,3113.5,3112.6,0.92163251]
[1767899941623,0.73797532,3113.4,3112.6,0.92163251]
[1767899942643,0.73797532,3113.4,3112.6,4.13434641]
[1767899942837,0.73797532,3113.4,3112.9,0.002]
[1767899943021,3.21202582,3113.3,3112.9,0.002]
[1767899945016,6.42405164,3113.3,3112.9,0.002]
[1767899945217,7.23586575,3113.3,3112.9,0.002]
[1767899945419,0.90394756,3113.2,3112.4,0.002]
[1767899945732,0.90394756,3112.9,3112.4,0.002]
[1767899946444,0.90394756,3112.9,3112.0,0.002]
[1767899946838,0.90394756,3112.9,3112.2,3.21315389]
[1767899947037,0.90394756,3112.9,3112.1,3.21326435]
[1767899947238,0.90394756,3112.9,3112.1,6.4265287]
[1767899948451,4.11619857,3113.1,3112.2,0.94357993]
[1767899949661,3.21225101,3113.1,3112.3,0.94357993]
[1767899950735,3.2121882,3113.2,3112.3,0.94357993]
[1767899951245,6.4243764,3113.2,3112.3,0.94357993]
[1767899951433,3.2121882,3113.2,3112.4,0.94357993]
[1767899951626,3.2121882,3113.2,3112.4,4.15652372]
[1767899952924,4.02385699,3113.3,3112.5,0.94357993]
[1767899953125,3.21276307,3113.6,3112.6,0.94357993]
[1767899953349,6.42452614,3113.6,3112.6,0.94357993]
[1767899953763,0.001,3113.6,3112.7,0.94357993]
[1767899953928,0.001,3113.6,3112.8,2.37065948]
[1767899954137,0.001,3113.6,3112.9,0.94357993]
[1767899954523,0.90394756,3114.8,3113.2,0.94357993]
[1767899954729,0.90394756,3114.7,3113.4,0.94357993]
[1767899954944,1.0906505,3114.7,3113.4,0.94357993]
[1767899955859,0.90394756,3114.5,3113.4,0.94357993]
[1767899956061,0.90394756,3114.5,3113.4,4.15547742]
[1767899957472,0.90394756,3114.5,3113.5,0.94357993]
[1767899957636,1.65514964,3114.5,3113.5,0.94357993]
[1767899957835,0.18670294,3114.7,3113.6,0.94357993]
[1767899958063,3.21022415,3115.1,3113.6,0.94357993]
[1767899958064,7.32490556,3114.8,3113.6,0.94357993]
[1767899958270,3.210479,3114.8,3113.6,0.94357993]
[1767899958636,0.001,3114.2,3113.6,0.94357993]
[1767899959848,0.001,3114.2,3113.7,0.843]
[1767899960442,0.001,3114.2,3113.8,3.21151005]
[1767899962562,3.21020051,3115.1,3113.8,3.21151005]
[1767899962563,0.90394756,3115.2,3113.9,0.94357993]
[1767899962786,0.90394756,3115.1,3113.9,0.94357993]
[1767899964877,0.90394756,3115.1,3114.0,3.21130378]
[1767899964878,3.21027287,3115.0,3114.0,3.21130378]
[1767899965077,4.11415396,3115.1,3114.1,0.94357993]
[1767899965247,3.2102064,3115.1,3114.1,0.94357993]
[1767899965447,0.73242281,3115.0,3114.1,0.94357993]
[1767899965748,0.73242281,3115.0,3114.3,0.94357993]
[1767899965949,0.73242281,3115.0,3114.2,0.843]
[1767899967060,3.94278918,3115.0,3114.2,0.843]
[1767899967450,3.94278918,3115.0,3114.2,4.05407292]
[1767899968582,3.94278918,3115.0,3114.3,2.88843197]
[1767899969982,3.94278918,3115.0,3114.3,6.09941817]
[1767899970284,0.73242281,3115.0,3114.5,2.88843197]
[1767899970583,0.90394756,3115.2,3114.5,6.09921994]
[1767899971081,0.90394756,3115.2,3114.6,2.88843197]
[1767899971471,0.001,3114.7,3114.6,2.88843197]
[1767899971678,4.11382626,3115.4,3114.6,2.88843197]
[1767899971854,4.11382626,3115.4,3114.8,2.88843197]
[1767899972053,1.31533019,3115.4,3114.8,2.88843197]
[1767899972577,4.12465862,3115.6,3115.0,2.88843197]
[1767899972958,0.91498324,3115.6,3115.0,2.88843197]
[1767899973158,4.12432885,3115.9,3115.2,2.88843197]
[1767899973670,0.001,3116.0,3115.5,2.88843197]
[1767899974276,0.001,3116.0,3115.3,3.73143197]
[1767899974475,0.001,3116.0,3115.3,0.843]
[1767899974674,0.001,3116.0,3115.3,7.26288998]
[1767899974974,0.001,3116.0,3115.3,4.05292626]
[1767899976090,0.001,3116.0,3115.3,8.18733962]
[1767899976395,0.001,3116.0,3115.3,5.79610986]
[1767899977362,0.001,3116.0,3115.3,9.00607358]
[1767899977786,0.001,3116.0,3115.3,5.79610986]
[1767899978188,0.001,3116.0,3115.3,9.00607358]
[1767899978870,0.001,3116.0,3115.4,0.92444964]
[1767899979464,0.001,3116.0,3115.5,0.92444964]
[1767899979862,0.001,3116.0,3115.4,0.59740005]
[1767899980104,0.001,3116.0,3115.3,5.79610986]
[1767899981797,0.001,3116.0,3115.3,9.00607358]
[1767899984363,0.001,3115.7,3115.3,5.79610986]
[1767899985677,0.001,3115.7,3115.3,9.00607358]
[1767899985878,0.001,3116.3,3115.3,9.00607358]
[1767899985879,0.001,3116.3,3115.5,0.92444964]
[1767899986085,0.001,3116.3,3115.7,0.92444964]
[1767899986291,0.001,3116.3,3115.6,0.44625038]
[1767899986587,0.001,3116.3,3115.6,6.4192905]
[1767899986887,0.001,3116.3,3115.6,7.34374014]
[1767899989464,0.001,3116.3,3115.7,0.92444964]
[1767899989789,0.001,3116.3,3115.9,0.92444964]
[1767899990974,0.001,3116.3,3115.8,0.842]
[1767899991163,0.001,3116.3,3115.8,4.05138635]
[1767899992265,0.001,3116.3,3115.9,3.20932241]
[1767899992690,0.001,3116.3,3115.8,4.05141429]
[1767899993093,0.001,3116.3,3115.9,3.2093438]
[1767899993283,0.001,3116.3,3115.8,4.0513944]
[1767899995297,0.91598324,3116.3,3115.8,0.842]
[1767899995502,0.91598324,3116.3,3115.1,0.92444964]
[1767899995697,0.91598324,3116.3,3115.5,3.20968758]
[1767899996003,0.91598324,3116.3,3115.6,3.20964004]
[1767899996798,0.91598324,3116.3,3116.0,0.002]
[1767899996976,0.001,3116.0,3115.4,6.41967168]
[1767899997177,0.91598324,3116.0,3115.2,0.842]
[1767899997374,0.91598324,3116.0,3115.6,0.002]
[1767899997779,0.38024286,3115.9,3115.6,0.002]
[1767899998006,0.91498324,3115.8,3115.6,0.002]
[1767899999307,0.91498324,3115.7,3114.9,3.21033525]
[1767899999700,0.91498324,3115.7,3114.8,3.210448]
[1767899999887,0.91498324,3115.6,3114.9,3.2103519]
[1767900000198,0.91498324,3115.6,3114.7,1.76644964]
[1767900000382,0.91498324,3115.6,3114.8,3.21045868]
[1767900000582,0.91498324,3115.6,3114.7,4.97698965]
[1767900000992,0.91498324,3115.6,3114.8,3.21042206]
[1767900001190,2.03923615,3115.6,3114.8,3.21042206]
[1767900001793,2.03923615,3115.6,3114.8,7.3453507]
[1767900002004,0.91498324,3115.6,3114.8,7.3453507]
[1767900002194,0.91498324,3115.6,3114.8,4.1348717]
[1767900002716,0.91498324,3115.6,3114.8,7.3453507]
[1767900002895,0.91498324,3115.6,3114.8,4.1348717]
[1767900003097,4.1246468,3115.6,3114.8,4.1348717]
[1767900003290,0.91498324,3115.6,3114.8,4.1348717]
[1767900003609,4.12464647,3115.6,3114.8,0.92444964]
[1767900003812,4.12464647,3115.6,3114.7,6.93901596]
[1767900003813,0.90926713,3115.2,3114.7,0.842]
[1767900004112,0.90926713,3114.8,3114.4,0.002]
[1767900004316,0.90926713,3114.4,3113.7,3.21156098]
[1767900004610,2.88644533,3115.0,3113.7,3.21156098]
[1767900004611,0.90926713,3114.8,3114.0,3.2132722]
[1767900004810,1.75126713,3115.1,3114.2,0.98654775]
[1767900004984,1.75126713,3115.1,3114.2,3.87299308]
[1767900005186,0.17512671,3115.0,3114.4,2.88644533]
[1767900005402,0.90926713,3115.2,3114.4,2.88644533]
[1767900005591,0.90926713,3115.2,3114.3,0.98654775]
[1767900005909,3.21016981,3115.1,3114.3,0.98654775]
[1767900008022,3.21016981,3115.1,3114.3,4.19752343]
[1767900008314,4.11936508,3115.2,3114.4,2.88644533]
[1767900008492,4.93650119,3115.2,3114.4,2.88644533]
[1767900009537,4.17623512,3115.9,3115.1,2.88644533]
[1767900009703,0.96687262,3115.8,3115.5,2.88644533]
[1767900010019,0.96687262,3115.8,3114.7,0.97146467]
[1767900010020,0.96687262,3115.8,3115.1,6.09658344]
[1767900010199,0.96687262,3115.8,3115.2,3.21006332]
[1767900010404,0.001,3116.0,3115.5,2.88644533]
[1767900010721,0.96787262,3116.3,3115.6,2.88644533]
[1767900011423,0.96787262,3116.3,3115.5,9.30595354]
[1767900012122,4.17680675,3116.3,3115.5,6.09619588]
[1767900012322,4.17680675,3116.3,3115.5,3.20975055]
[1767900012706,0.96687262,3116.2,3115.5,3.20975055]
[1767900013408,0.96687262,3116.2,3115.4,3.20981142]
[1767900013601,0.96687262,3116.1,3115.0,0.97146467]
[1767900013807,0.96687262,3116.1,3115.3,3.20996]
[1767900013999,0.96687262,3116.0,3114.8,7.39242267]
[1767900014199,0.96687262,3116.0,3114.9,0.97146467]
[1767900015222,3.20913962,3116.1,3114.7,3.21054213]
[1767900015223,0.96687262,3115.8,3114.7,3.21054213]
[1767900015419,0.96687262,3115.5,3114.7,6.42115984]
[1767900016009,2.19420029,3115.7,3114.6,7.39283499]
[1767900016209,5.40376374,3115.7,3114.6,7.39283499]
[1767900016420,5.40376374,3115.7,3114.7,0.97146467]
[1767900016421,0.842,3115.6,3114.7,0.97146467]
[1767900017409,0.842,3115.6,3114.8,0.97146467]
[1767900017618,0.842,3115.6,3114.9,0.38578688]
[1767900018018,0.96687262,3115.7,3114.8,0.97146467]
[1767900018219,0.96687262,3115.7,3114.9,3.21037593]
[1767900018525,0.96687262,3115.7,3114.9,6.42075186]
[1767900020311,0.96687262,3115.7,3114.9,3.21037593]
[1767900020506,0.96687262,3115.7,3114.9,6.42075186]
[1767900020706,1.80887262,3115.9,3114.9,8.13143818]
[1767900021520,0.96687262,3115.9,3114.9,8.13143818]
[1767900021697,0.96687262,3115.9,3115.0,0.97146467]
[1767900022298,0.80787262,3115.9,3115.1,3.21016981]
[1767900022506,0.80687262,3115.9,3115.1,4.18163448]
[1767900022718,4.01622682,3115.9,3115.2,0.73918616]
[1767900022906,4.01622682,3115.9,3115.1,3.21016981]
[1767900023428,0.96687262,3115.8,3114.9,1.71068632]
[1767900023610,0.96687262,3115.8,3114.7,1.81346467]
[1767900023812,0.96687262,3115.8,3115.0,3.21024862]
[1767900024631,4.17634336,3115.8,3114.8,7.39235235]
[1767900025628,0.842,3116.0,3114.9,0.97146467]
[1767900025926,1.80887262,3116.0,3115.1,0.97146467]
[1767900026903,5.01811815,3116.0,3115.2,3.21006676]
[1767900027506,1.80887262,3116.0,3115.2,3.21006676]
[1767900027730,4.17614759,3116.0,3115.2,3.21006676]
[1767900028934,4.17614759,3116.0,3114.7,4.05254228]
[1767900028935,0.96687262,3115.4,3113.8,0.97146467]
[1767900029105,0.96687262,3115.2,3114.3,3.2109437]
[1767900029526,0.96687262,3115.2,3114.2,3.21106686]
[1767900029737,0.96687262,3115.2,3114.3,3.21098884]
[1767900029936,0.96687262,3115.2,3114.6,3.21067793]
[1767900030106,0.842,3115.4,3114.7,0.32106779]
[1767900030431,1.80887262,3115.4,3114.5,0.97146467]
[1767900030812,7.38680006,3115.3,3114.3,4.18241149]
[1767900031015,7.38680006,3115.3,3114.0,0.002]
[1767900031016,0.96687262,3115.2,3114.0,0.002]
[1767900031222,0.96687262,3115.0,3114.2,3.21104448]
[1767900031413,0.96687262,3115.0,3114.3,3.21097864]
[1767900031607,4.17683634,3115.3,3114.3,3.21097864]
[1767900031826,0.96687262,3115.2,3114.3,3.21097864]
[1767900032546,0.842,3115.1,3114.3,3.21097864]
[1767900032852,0.842,3115.1,3114.3,3.95033237]
[1767900033723,0.96687262,3115.2,3114.3,8.09805252]
[1767900034256,0.98973749,3116.2,3114.4,0.93672571]
[1767900034457,0.98973749,3116.0,3114.4,0.93672571]
[1767900034796,0.98973749,3115.8,3114.6,0.93672571]
[1767900035535,0.98973749,3115.8,3114.8,0.93672571]
[1767900035739,4.05144956,3115.8,3114.8,0.93672571]
[1767900036126,3.20944956,3115.8,3114.8,0.93672571]
[1767900036441,3.20938894,3115.9,3114.8,0.93672571]
[1767900036644,4.05138894,3115.9,3114.9,1.6725147]
[1767900037255,0.842,3115.9,3114.9,1.6725147]
[1767900037437,4.19903199,3116.0,3114.9,1.6725147]
[1767900037438,0.842,3116.0,3115.0,0.93672571]
[1767900037658,0.001,3116.3,3115.2,0.93672571]
[1767900037957,0.98973749,3116.2,3115.3,0.66772293]
[1767900038515,0.98973749,3116.2,3115.3,1.60444864]
[1767900039974,0.98973749,3116.0,3114.8,3.21044472]
[1767900040246,0.98973749,3116.0,3114.4,0.93672571]
[1767900040647,0.98973749,3116.0,3114.9,3.2103483]
[1767900040944,0.98973749,3116.0,3115.0,3.2102727]
[1767900041116,0.98973749,3115.8,3115.0,3.2102727]
[1767900041318,1.83173749,3115.7,3114.9,3.21032546]
[1767900041841,1.83173749,3115.7,3115.0,3.21026261]
[1767900042951,1.83173749,3115.7,3114.7,6.42116414]
[1767900043243,1.83173749,3115.7,3114.8,0.73578899]
[1767900043448,5.04129052,3115.7,3114.8,0.73578899]
[1767900044550,1.83173749,3115.7,3114.8,0.73578899]
[1767900045050,1.83173749,3115.7,3114.9,6.42075186]
[1767900046245,0.842,3115.6,3115.0,0.93672571]
[1767900046454,0.842,3115.8,3115.1,0.66772293]
[1767900047139,0.842,3115.8,3115.1,3.87781893]
[1767900047645,0.842,3115.8,3115.1,7.08798874]
[1767900048051,0.842,3115.8,3115.1,3.87781893]
[1767900048548,0.98973749,3115.7,3114.9,0.002]
[1767900048923,0.98973749,3115.7,3115.0,3.21021737]
[1767900049233,0.98973749,3115.7,3114.9,0.002]
[1767900050663,0.001,3115.9,3114.9,0.93872571]
[1767900050862,0.843,3115.9,3114.9,0.93872571]
[1767900051675,0.001,3115.9,3115.0,7.35727145]
[1767900051865,0.843,3115.9,3115.1,1.05696117]
[1767900053359,0.843,3115.9,3115.2,0.93672571]
[1767900053677,0.843,3115.9,3115.3,3.20996372]
[1767900055582,0.843,3115.9,3115.2,6.42009977]
[1767900056277,0.001,3115.9,3115.2,7.35682548]
[1767900056478,0.001,3115.9,3115.2,7.70337623]
[1767900056682,0.001,3115.9,3115.2,4.49330947]
[1767900057379,0.001,3115.9,3115.2,7.70337623]
[1767900058079,0.001,3115.9,3115.3,0.93672571]
[1767900060070,0.001,3115.9,3115.4,3.20986069]
[1767900061364,0.001,3115.9,3115.4,0.77030952]
[1767900061564,0.001,3115.9,3115.0,0.93672571]
[1767900061565,0.99073749,3115.9,3115.2,3.21001529]
[1767900061971,0.99073749,3115.9,3115.3,3.2099191]
[1767900062374,0.99073749,3115.9,3115.1,7.35706533]
[1767900063689,0.001,3115.6,3115.1,7.35706533]
[1767900064073,0.001,3115.6,3115.2,0.99584279]
[1767900064274,0.001,3115.6,3115.4,3.20986069]
[1767900064862,0.001,3115.6,3115.3,3.95153712]
[1767900066298,0.001,3115.6,3115.3,7.16150084]
[1767900068994,3.20906998,3116.2,3115.3,7.16150084]
[1767900068995,0.001,3116.3,3115.4,0.97596804]
[1767900069395,0.94788046,3116.3,3115.4,0.97596804]
[1767900069696,0.94788046,3116.3,3115.6,0.97596804]
[1767900069697,0.001,3116.3,3115.6,0.97596804]
[1767900071574,0.001,3116.3,3115.7,3.20955162]
[1767900072296,0.001,3116.3,3115.7,4.18551966]
[1767900072774,0.001,3116.3,3115.7,7.39507128]
[1767900073396,0.001,3116.3,3115.8,0.97596804]
[1767900073578,0.001,3116.3,3115.9,3.94885274]
[1767900074580,0.94688046,3116.0,3115.2,0.97596804]
[1767900074792,0.94688046,3116.0,3115.6,3.20959853]
[1767900075101,0.94688046,3116.0,3115.6,3.20960907]
[1767900075297,0.843,3116.3,3115.6,3.86207606]
[1767900075802,0.843,3116.3,3115.7,3.20952664]
[1767900077006,0.94688046,3116.2,3115.6,3.20964614]
[1767900077194,0.001,3116.0,3115.6,3.20964614]
[1767900077596,0.001,3116.0,3115.6,6.41930078]
[1767900077809,0.001,3116.0,3115.6,1.02813768]
[1767900079099,0.001,3116.0,3115.6,4.23776851]
[1767900079478,0.001,3116.0,3115.4,3.2098263]
[1767900079682,0.001,3116.0,3115.6,3.20964327]
[1767900080077,0.001,3116.0,3115.4,3.2098263]
[1767900080078,0.94788046,3116.0,3115.4,3.2098263]
[1767900080299,0.94788046,3116.0,3115.2,3.21006022]
[1767900080300,0.94688046,3115.7,3115.2,3.21006022]
[1767900080503,0.94688046,3115.7,3114.9,0.97796804]
[1767900080504,0.94688046,3115.7,3115.3,3.20994511]
[1767900081102,0.94688046,3115.9,3115.0,6.42054574]
[1767900081300,0.94688046,3115.9,3114.9,0.97796804]
[1767900081301,3.83298848,3115.6,3114.9,3.21234378]
[1767900081822,0.94688046,3115.5,3114.9,0.002]
[1767900082210,0.94688046,3115.3,3114.9,0.002]
[1767900082992,0.94688046,3115.1,3114.9,0.002]
[1767900083183,3.83298848,3115.0,3114.5,0.002]
[1767900083511,0.56738186,3114.9,3114.5,0.002]
[1767900083816,0.94688046,3115.0,3114.5,0.002]
[1767900084907,0.842,3115.3,3114.8,2.88610802]
[1767900085105,0.842,3115.3,3114.7,0.97596804]
[1767900085310,0.842,3115.3,3114.6,2.88610802]
[1767900085610,4.05198569,3115.3,3114.5,3.21273283]
[1767900085815,0.842,3115.3,3114.6,7.07271973]
[1767900086041,0.94688046,3115.6,3114.8,2.88610802]
[1767900086198,4.05150271,3115.8,3115.2,2.88610802]
[1767900086403,3.20950271,3115.8,3115.0,3.86207606]
[1767900086617,4.05150271,3115.8,3115.0,3.86207606]
[1767900086926,0.94688046,3115.7,3114.8,0.97596804]
[1767900087107,0.94688046,3115.7,3114.7,6.0966163]
[1767900087108,0.94688046,3115.7,3114.7,3.21050828]
[1767900087311,4.1565351,3115.6,3114.7,6.0966163]
[1767900087689,0.94688046,3115.5,3114.6,3.21063967]
[1767900087894,0.94688046,3115.4,3114.6,3.21063967]
[1767900088824,0.94688046,3115.4,3114.5,2.88810802]
[1767900088825,0.94688046,3115.4,3114.7,3.2105476]
[1767900088992,0.94688046,3115.4,3114.7,6.09665562]
[1767900089622,0.94688046,3115.4,3115.0,0.002]